[Event "Titled Tuesday Blitz May 2 Early 2023"]
[White "Vedder, Richard"]
[Black "Pham, Le Thao Nguyen"]
[WhiteFideId "1004166"]
[BlackFideId "12401226"]
[WhiteElo "2168"]
[BlackElo "2286"]
[Result "1-0"]
[Round "04"]
[TimeControl "180+2"]
[Date "2023.05.02"]
[WhiteClock "0:01:02"]
[BlackClock "0:00:01"]

1. d4 {[%clk 0:03:00]}  d5 {[%clk 0:02:55]} 2. c4 {[%clk 0:03:00]}  c6 {[%clk 0:02:55]} 3. Nc3 {[%clk 0:03:00]}  Nf6 {[%clk 0:02:55]} 4. Nf3 {[%clk 0:03:01]}  a6 {[%clk 0:02:55]} 5. Bg5 {[%clk 0:03:00]}  dxc4 {[%clk 0:02:44]} 6. e4 {[%clk 0:02:57]}  b5 {[%clk 0:02:43]} 7. e5 {[%clk 0:02:56]}  Nd5 {[%clk 0:02:41]} 8. Ne4 {[%clk 0:02:56]}  f6 {[%clk 0:02:30]} 9. Bd2 {[%clk 0:02:55]}  Bf5 {[%clk 0:02:09]} 10. Ng3 {[%clk 0:02:53]}  e6 {[%clk 0:02:04]} 11. Nxf5 {[%clk 0:02:51]}  exf5 {[%clk 0:02:05]} 12. Be2 {[%clk 0:02:51]}  Be7 {[%clk 0:01:59]} 13. O-O {[%clk 0:02:50]}  O-O {[%clk 0:01:58]} 14. Qc2 {[%clk 0:02:50]}  Qc8 {[%clk 0:01:34]} 15. b3 {[%clk 0:02:49]}  cxb3 {[%clk 0:01:07]} 16. axb3 {[%clk 0:02:50]}  fxe5 {[%clk 0:01:00]} 17. Nxe5 {[%clk 0:02:48]}  Bd6 {[%clk 0:00:57]} 18. Rfc1 {[%clk 0:02:45]}  Bxe5 {[%clk 0:00:45]} 19. dxe5 {[%clk 0:02:46]}  Qe6 {[%clk 0:00:45]} 20. f4 {[%clk 0:02:44]}  Rc8 {[%clk 0:00:43]} 21. Bd3 {[%clk 0:02:43]}  Ne7 {[%clk 0:00:39]} 22. Bb4 {[%clk 0:02:36]}  c5 {[%clk 0:00:35]} 23. Bxc5 {[%clk 0:02:31]}  Nd7 {[%clk 0:00:35]} 24. b4 {[%clk 0:02:31]}  Nxc5 {[%clk 0:00:34]} 25. bxc5 {[%clk 0:02:31]}  g6 {[%clk 0:00:31]} 26. Qf2 {[%clk 0:02:18]}  Kg7 {[%clk 0:00:31]} 27. h4 {[%clk 0:02:17]}  Nc6 {[%clk 0:00:20]} 28. h5 {[%clk 0:02:16]}  Rd8 {[%clk 0:00:19]} 29. Bf1 {[%clk 0:02:07]}  gxh5 {[%clk 0:00:15]} 30. Qh4 {[%clk 0:02:06]}  Qg6 {[%clk 0:00:14]} 31. Be2 {[%clk 0:02:02]}  Nd4 {[%clk 0:00:12]} 32. Bxh5 {[%clk 0:01:57]}  Qh6 {[%clk 0:00:12]} 33. Qg3+ {[%clk 0:01:56]}  Kh8 {[%clk 0:00:11]} 34. Bd1 {[%clk 0:01:47]}  Rg8 {[%clk 0:00:12]} 35. Qf2 {[%clk 0:01:48]}  Rad8 {[%clk 0:00:07]} 36. c6 {[%clk 0:01:45]}  Nxc6 {[%clk 0:00:06]} 37. Rxa6 {[%clk 0:01:44]}  Rg6 {[%clk 0:00:03]} 38. Qb2 {[%clk 0:01:31]}  Nd4 {[%clk 0:00:01]} 39. Rxg6 {[%clk 0:01:30]}  Qxg6 {[%clk 0:00:02]} 40. Rc7 {[%clk 0:01:23]}  Qe6 {[%clk 0:00:02]} 41. Qb4 {[%clk 0:01:14]}  Qb6 {[%clk 0:00:02]} 42. Qc5 {[%clk 0:01:12]}  Qxc5 {[%clk 0:00:03]} 43. Rxc5 {[%clk 0:01:13]}  Rb8 {[%clk 0:00:03]} 44. Rd5 {[%clk 0:01:12]}  Ne6 {[%clk 0:00:03]} 45. g3 {[%clk 0:01:10]}  b4 {[%clk 0:00:03]} 46. Bb3 {[%clk 0:01:09]}  Rc8 {[%clk 0:00:02]} 47. Rb5 {[%clk 0:01:07]}  Nd4 {[%clk 0:00:02]} 48. Rxb4 {[%clk 0:01:07]}  Rc3 {[%clk 0:00:03]} 49. Rxd4 {[%clk 0:01:06]}  Rxg3+ {[%clk 0:00:02]} 50. Kf2 {[%clk 0:01:04]}  Rxb3 {[%clk 0:00:03]} 51. Rd6 {[%clk 0:01:05]}  Rb2+ {[%clk 0:00:02]} 52. Kg3 {[%clk 0:01:04]}  Rb3+ {[%clk 0:00:01]} 53. Kh4 {[%clk 0:01:02]}  Kg7 {[%clk 0:00:01]} 54. Kg5 {[%clk 0:01:02]} 1-0


[Site "https://www.chess.com"]

[Event "Titled Tuesday Blitz May 2 Early 2023"]
[White "Tarasova, Viktoriya"]
[Black "Hirneise, Jens"]
[WhiteFideId "4175840"]
[BlackFideId "24614734"]
[WhiteElo "2182"]
[BlackElo "2345"]
[Result "1/2-1/2"]
[Round "04"]
[TimeControl "180+2"]
[Date "2023.05.02"]
[WhiteClock "0:00:22"]
[BlackClock "0:00:11"]

1. d4 {[%clk 0:03:00]}  d5 {[%clk 0:02:54]} 2. c4 {[%clk 0:03:00]}  dxc4 {[%clk 0:02:51]} 3. e4 {[%clk 0:02:59]}  e5 {[%clk 0:02:49]} 4. Nf3 {[%clk 0:02:58]}  exd4 {[%clk 0:02:47]} 5. Bxc4 {[%clk 0:02:58]}  Bb4+ {[%clk 0:02:46]} 6. Nbd2 {[%clk 0:02:58]}  Nf6 {[%clk 0:02:43]} 7. O-O {[%clk 0:02:58]}  O-O {[%clk 0:02:42]} 8. a3 {[%clk 0:02:57]}  Bxd2 {[%clk 0:02:41]} 9. Nxd2 {[%clk 0:02:56]}  Be6 {[%clk 0:02:39]} 10. Bxe6 {[%clk 0:02:54]}  fxe6 {[%clk 0:02:39]} 11. e5 {[%clk 0:02:54]}  Nd5 {[%clk 0:02:36]} 12. Nb3 {[%clk 0:02:54]}  Nf4 {[%clk 0:02:28]} 13. g3 {[%clk 0:02:41]}  Ng6 {[%clk 0:02:05]} 14. Nxd4 {[%clk 0:02:37]}  Qd5 {[%clk 0:01:55]} 15. f4 {[%clk 0:02:29]}  Nc6 {[%clk 0:01:53]} 16. Nxc6 {[%clk 0:02:21]}  Qxc6 {[%clk 0:01:52]} 17. Be3 {[%clk 0:02:20]}  Rad8 {[%clk 0:01:47]} 18. Qf3 {[%clk 0:02:19]}  Qxf3 {[%clk 0:01:42]} 19. Rxf3 {[%clk 0:02:20]}  Nxe5 {[%clk 0:01:43]} 20. Rf2 {[%clk 0:02:19]}  Nc4 {[%clk 0:01:38]} 21. Bc5 {[%clk 0:02:14]}  Rfe8 {[%clk 0:01:35]} 22. b3 {[%clk 0:02:14]}  Nd2 {[%clk 0:01:29]} 23. b4 {[%clk 0:02:03]}  b6 {[%clk 0:01:21]} 24. Be3 {[%clk 0:02:02]}  Nc4 {[%clk 0:01:16]} 25. Re2 {[%clk 0:01:57]}  Rd3 {[%clk 0:01:16]} 26. Bf2 {[%clk 0:01:52]}  Rxa3 {[%clk 0:01:14]} 27. Rc1 {[%clk 0:01:49]}  b5 {[%clk 0:01:14]} 28. Rce1 {[%clk 0:01:49]}  Kf7 {[%clk 0:01:13]} 29. Bd4 {[%clk 0:01:46]}  a5 {[%clk 0:01:06]} 30. bxa5 {[%clk 0:01:45]}  Rxa5 {[%clk 0:01:07]} 31. f5 {[%clk 0:01:45]}  e5 {[%clk 0:01:07]} 32. Bxe5 {[%clk 0:01:44]}  Nxe5 {[%clk 0:00:59]} 33. Rxe5 {[%clk 0:01:43]}  Rxe5 {[%clk 0:00:58]} 34. Rxe5 {[%clk 0:01:43]}  Ra1+ {[%clk 0:00:51]} 35. Kg2 {[%clk 0:01:43]}  b4 {[%clk 0:00:52]} 36. Rb5 {[%clk 0:01:36]}  Rb1 {[%clk 0:00:49]} 37. Rb7 {[%clk 0:01:35]}  Kf6 {[%clk 0:00:48]} 38. Rxc7 {[%clk 0:01:34]}  b3 {[%clk 0:00:48]} 39. g4 {[%clk 0:01:31]}  b2 {[%clk 0:00:37]} 40. Rb7 {[%clk 0:01:31]}  h6 {[%clk 0:00:37]} 41. Rb8 {[%clk 0:01:28]}  Ke5 {[%clk 0:00:36]} 42. h3 {[%clk 0:01:25]}  Kf4 {[%clk 0:00:31]} 43. Rb4+ {[%clk 0:01:23]}  Kg5 {[%clk 0:00:30]} 44. Rb8 {[%clk 0:01:23]}  h5 {[%clk 0:00:28]} 45. Rb4 {[%clk 0:01:11]}  hxg4 {[%clk 0:00:27]} 46. hxg4 {[%clk 0:01:12]}  Kh4 {[%clk 0:00:25]} 47. Kh2 {[%clk 0:01:11]}  Kg5 {[%clk 0:00:21]} 48. Kg2 {[%clk 0:01:12]}  Kf6 {[%clk 0:00:22]} 49. Rb8 {[%clk 0:01:10]}  Ke5 {[%clk 0:00:22]} 50. Rb4 {[%clk 0:01:05]}  Kd5 {[%clk 0:00:21]} 51. Kh2 {[%clk 0:01:00]}  Kc5 {[%clk 0:00:20]} 52. Rb8 {[%clk 0:01:00]}  Kc4 {[%clk 0:00:20]} 53. g5 {[%clk 0:00:45]}  Kd5 {[%clk 0:00:20]} 54. f6 {[%clk 0:00:39]}  gxf6 {[%clk 0:00:20]} 55. g6 {[%clk 0:00:30]}  Rc1 {[%clk 0:00:20]} 56. Rxb2 {[%clk 0:00:29]}  Rc7 {[%clk 0:00:20]} 57. Rg2 {[%clk 0:00:28]}  Rg7 {[%clk 0:00:19]} 58. Kh3 {[%clk 0:00:29]}  f5 {[%clk 0:00:12]} 59. Kh4 {[%clk 0:00:29]}  Ke4 {[%clk 0:00:11]} 60. Kg5 {[%clk 0:00:22]}  f4 {[%clk 0:00:11]} 61. Rg4 {[%clk 0:00:22]}  Ke3 {[%clk 0:00:11]} 62. Rxf4 {[%clk 0:00:21]}  Rxg6+ {[%clk 0:00:11]} 63. Kxg6 {[%clk 0:00:22]}  Kxf4 {[%clk 0:00:11]} 1/2-1/2


[Site "https://www.chess.com"]

[Event "Titled Tuesday Blitz May 2 Early 2023"]
[White "Begunov, Konstantin"]
[Black "Bayasgalan, Khishigbaatar"]
[WhiteFideId "4118510"]
[BlackFideId "4904311"]
[WhiteElo "2087"]
[BlackElo "2057"]
[Result "0-1"]
[Round "04"]
[TimeControl "180+2"]
[Date "2023.05.02"]
[WhiteClock "0:00:28"]
[BlackClock "0:00:09"]

1. d4 {[%clk 0:02:57]}  Nf6 {[%clk 0:02:18]} 2. c4 {[%clk 0:02:56]}  e6 {[%clk 0:02:18]} 3. Nf3 {[%clk 0:02:56]}  d5 {[%clk 0:02:19]} 4. Nc3 {[%clk 0:02:56]}  c6 {[%clk 0:02:18]} 5. cxd5 {[%clk 0:02:56]}  exd5 {[%clk 0:02:18]} 6. Bg5 {[%clk 0:02:56]}  Be7 {[%clk 0:02:18]} 7. Qc2 {[%clk 0:02:57]}  O-O {[%clk 0:02:17]} 8. e3 {[%clk 0:02:57]}  Bg4 {[%clk 0:02:15]} 9. Ne5 {[%clk 0:02:57]}  Bh5 {[%clk 0:02:15]} 10. Bd3 {[%clk 0:02:56]}  Bg6 {[%clk 0:02:11]} 11. Nxg6 {[%clk 0:02:56]}  hxg6 {[%clk 0:02:11]} 12. O-O-O {[%clk 0:02:55]}  Nbd7 {[%clk 0:02:11]} 13. h4 {[%clk 0:02:53]}  b5 {[%clk 0:02:08]} 14. Kb1 {[%clk 0:02:53]}  b4 {[%clk 0:02:07]} 15. Ne2 {[%clk 0:02:50]}  Rc8 {[%clk 0:01:59]} 16. Ba6 {[%clk 0:02:48]}  Rb8 {[%clk 0:01:53]} 17. Qxc6 {[%clk 0:02:43]}  Rb6 {[%clk 0:01:45]} 18. Qa4 {[%clk 0:02:43]}  Ne4 {[%clk 0:01:45]} 19. Bxe7 {[%clk 0:02:29]}  Qxe7 {[%clk 0:01:45]} 20. Rhf1 {[%clk 0:02:11]}  Ndc5 {[%clk 0:01:32]} 21. dxc5 {[%clk 0:01:54]}  Nxc5 {[%clk 0:01:32]} 22. Qc2 {[%clk 0:01:50]}  Nxa6 {[%clk 0:01:28]} 23. Rxd5 {[%clk 0:01:44]}  b3 {[%clk 0:01:28]} 24. Qc4 {[%clk 0:01:25]}  bxa2+ {[%clk 0:01:26]} 25. Ka1 {[%clk 0:01:23]}  Nb4 {[%clk 0:01:25]} 26. Rd2 {[%clk 0:01:11]}  Rc6 {[%clk 0:01:19]} 27. Qb3 {[%clk 0:00:58]}  Rfc8 {[%clk 0:01:02]} 28. Nc3 {[%clk 0:00:58]}  a5 {[%clk 0:00:53]} 29. g3 {[%clk 0:00:53]}  Qf6 {[%clk 0:00:35]} 30. Rfd1 {[%clk 0:00:50]}  Kh7 {[%clk 0:00:12]} 31. Qa4 {[%clk 0:00:44]}  Rxc3 {[%clk 0:00:11]} 32. bxc3 {[%clk 0:00:36]}  Qxc3+ {[%clk 0:00:11]} 33. Rb2 {[%clk 0:00:36]}  Qc1+ {[%clk 0:00:12]} 34. Rb1 {[%clk 0:00:28]}  axb1=Q# {[%clk 0:00:09]} 0-1


[Site "https://www.chess.com"]

[Event "Titled Tuesday Blitz May 2 Early 2023"]
[White "Li, Hui"]
[Black "Vivas Zamora, Fabian Ernesto"]
[WhiteFideId "15400310"]
[BlackFideId "3902480"]
[WhiteElo "1967"]
[BlackElo "2262"]
[Result "1-0"]
[Round "04"]
[TimeControl "180+2"]
[Date "2023.05.02"]
[WhiteClock "0:00:19"]
[BlackClock "0:00:01"]

1. e4 {[%clk 0:03:00]}  c5 {[%clk 0:02:55]} 2. Nf3 {[%clk 0:03:00]}  d6 {[%clk 0:02:56]} 3. d4 {[%clk 0:03:01]}  cxd4 {[%clk 0:02:56]} 4. Nxd4 {[%clk 0:03:01]}  Nf6 {[%clk 0:02:57]} 5. Nc3 {[%clk 0:03:02]}  g6 {[%clk 0:02:58]} 6. Be3 {[%clk 0:03:02]}  Bg7 {[%clk 0:02:58]} 7. f3 {[%clk 0:03:03]}  O-O {[%clk 0:02:58]} 8. Qd2 {[%clk 0:03:03]}  Nc6 {[%clk 0:02:59]} 9. O-O-O {[%clk 0:03:04]}  d5 {[%clk 0:02:57]} 10. Kb1 {[%clk 0:03:04]}  e5 {[%clk 0:02:51]} 11. Nxc6 {[%clk 0:03:04]}  bxc6 {[%clk 0:02:51]} 12. exd5 {[%clk 0:03:05]}  Nxd5 {[%clk 0:02:51]} 13. Nxd5 {[%clk 0:03:06]}  cxd5 {[%clk 0:02:44]} 14. Qxd5 {[%clk 0:03:07]}  Qc7 {[%clk 0:02:33]} 15. Qxa8 {[%clk 0:03:04]}  Bf5 {[%clk 0:02:31]} 16. Qd5 {[%clk 0:03:04]}  Qxc2+ {[%clk 0:02:01]} 17. Ka1 {[%clk 0:03:04]}  e4 {[%clk 0:01:44]} 18. Qb3 {[%clk 0:03:03]}  Bxb2+ {[%clk 0:01:34]} 19. Qxb2 {[%clk 0:03:04]}  Qxd1+ {[%clk 0:01:34]} 20. Qc1 {[%clk 0:02:51]}  Qd6 {[%clk 0:00:50]} 21. Bc4 {[%clk 0:02:38]}  exf3 {[%clk 0:00:34]} 22. Qd2 {[%clk 0:02:02]}  fxg2 {[%clk 0:00:23]} 23. Rg1 {[%clk 0:01:55]}  Qxh2 {[%clk 0:00:12]} 24. Rxg2 {[%clk 0:01:40]}  Qe5+ {[%clk 0:00:11]} 25. Qd4 {[%clk 0:01:30]}  Qxd4+ {[%clk 0:00:02]} 26. Bxd4 {[%clk 0:01:31]}  Rd8 {[%clk 0:00:02]} 27. Bxa7 {[%clk 0:01:21]}  h5 {[%clk 0:00:02]} 28. Be3 {[%clk 0:01:11]}  Kg7 {[%clk 0:00:02]} 29. a4 {[%clk 0:01:02]}  Rd1+ {[%clk 0:00:02]} 30. Kb2 {[%clk 0:01:01]}  h4 {[%clk 0:00:03]} 31. Rd2 {[%clk 0:00:53]}  Re1 {[%clk 0:00:01]} 32. Bf2 {[%clk 0:00:49]}  Re4 {[%clk 0:00:02]} 33. Bb3 {[%clk 0:00:43]}  h3 {[%clk 0:00:02]} 34. Bg3 {[%clk 0:00:34]}  Rg4 {[%clk 0:00:01]} 35. Bd6 {[%clk 0:00:21]}  g5 {[%clk 0:00:01]} 36. a5 {[%clk 0:00:19]} 1-0


[Site "https://www.chess.com"]

[Event "Titled Tuesday Blitz May 2 Early 2023"]
[White "Lopez, Henry"]
[Black "Gheorghiu, Calin"]
[WhiteFideId "5203830"]
[BlackFideId "1200305"]
[WhiteElo "2177"]
[BlackElo "2223"]
[Result "1-0"]
[Round "04"]
[TimeControl "180+2"]
[Date "2023.05.02"]
[WhiteClock "0:00:18"]
[BlackClock "0:00:11"]

1. d4 {[%clk 0:02:28]}  Nf6 {[%clk 0:02:57]} 2. Nf3 {[%clk 0:02:27]}  d5 {[%clk 0:02:55]} 3. c4 {[%clk 0:02:28]}  e6 {[%clk 0:02:51]} 4. Nc3 {[%clk 0:02:28]}  Be7 {[%clk 0:02:49]} 5. Bg5 {[%clk 0:02:27]}  O-O {[%clk 0:02:48]} 6. e3 {[%clk 0:02:27]}  c6 {[%clk 0:02:43]} 7. Rc1 {[%clk 0:02:26]}  Nbd7 {[%clk 0:02:43]} 8. cxd5 {[%clk 0:02:26]}  exd5 {[%clk 0:02:42]} 9. Bd3 {[%clk 0:02:26]}  Re8 {[%clk 0:02:43]} 10. O-O {[%clk 0:02:26]}  Nf8 {[%clk 0:02:42]} 11. Ne5 {[%clk 0:02:25]}  Ne4 {[%clk 0:02:36]} 12. Bf4 {[%clk 0:02:14]}  f6 {[%clk 0:02:34]} 13. Nf3 {[%clk 0:02:04]}  Bd6 {[%clk 0:02:28]} 14. Bxd6 {[%clk 0:02:00]}  Nxd6 {[%clk 0:02:26]} 15. Qc2 {[%clk 0:02:00]}  Bg4 {[%clk 0:02:26]} 16. Nd2 {[%clk 0:01:57]}  Bh5 {[%clk 0:02:23]} 17. Rce1 {[%clk 0:01:56]}  Bg6 {[%clk 0:02:19]} 18. f3 {[%clk 0:01:56]}  Rc8 {[%clk 0:02:16]} 19. b4 {[%clk 0:01:54]}  b6 {[%clk 0:02:15]} 20. Kh1 {[%clk 0:01:44]}  Kh8 {[%clk 0:02:13]} 21. Nb3 {[%clk 0:01:42]}  Nc4 {[%clk 0:02:07]} 22. e4 {[%clk 0:01:41]}  b5 {[%clk 0:01:58]} 23. exd5 {[%clk 0:01:34]}  Ne3 {[%clk 0:01:56]} 24. Rxe3 {[%clk 0:01:32]}  Rxe3 {[%clk 0:01:55]} 25. Bxg6 {[%clk 0:01:27]}  Nxg6 {[%clk 0:01:50]} 26. Qd2 {[%clk 0:01:27]}  Re7 {[%clk 0:01:45]} 27. dxc6 {[%clk 0:01:24]}  Rxc6 {[%clk 0:01:45]} 28. Nc5 {[%clk 0:01:22]}  a6 {[%clk 0:01:41]} 29. d5 {[%clk 0:01:21]}  Rc8 {[%clk 0:01:37]} 30. d6 {[%clk 0:01:15]}  Re5 {[%clk 0:01:36]} 31. Rd1 {[%clk 0:01:14]}  a5 {[%clk 0:01:30]} 32. a3 {[%clk 0:01:13]}  axb4 {[%clk 0:01:30]} 33. axb4 {[%clk 0:01:13]}  Rc6 {[%clk 0:01:25]} 34. d7 {[%clk 0:01:09]}  Nf8 {[%clk 0:01:25]} 35. h3 {[%clk 0:00:55]}  h6 {[%clk 0:01:20]} 36. Nxb5 {[%clk 0:00:50]}  Rcxc5 {[%clk 0:01:06]} 37. bxc5 {[%clk 0:00:49]}  Rxc5 {[%clk 0:01:06]} 38. Qb4 {[%clk 0:00:39]}  Ne6 {[%clk 0:00:53]} 39. Na7 {[%clk 0:00:20]}  Rc7 {[%clk 0:00:43]} 40. Qd6 {[%clk 0:00:19]}  Nc5 {[%clk 0:00:11]} 41. Qxc7 {[%clk 0:00:18]} 1-0


[Site "https://www.chess.com"]

[Event "Titled Tuesday Blitz May 2 Early 2023"]
[White "Balague Camps, Marc"]
[Black "Shvedova, Alexandra"]
[WhiteFideId "2297914"]
[BlackFideId "54154782"]
[WhiteElo "2089"]
[BlackElo "2057"]
[Result "1-0"]
[Round "04"]
[TimeControl "180+2"]
[Date "2023.05.02"]
[WhiteClock "0:01:21"]
[BlackClock "0:00:12"]

1. d4 {[%clk 0:03:00]}  Nf6 {[%clk 0:02:59]} 2. c4 {[%clk 0:03:00]}  e6 {[%clk 0:02:59]} 3. Nc3 {[%clk 0:03:01]}  d5 {[%clk 0:02:58]} 4. cxd5 {[%clk 0:03:01]}  exd5 {[%clk 0:02:59]} 5. Bg5 {[%clk 0:03:00]}  c6 {[%clk 0:02:59]} 6. e3 {[%clk 0:03:01]}  Be7 {[%clk 0:02:59]} 7. Qc2 {[%clk 0:03:00]}  Bg4 {[%clk 0:02:59]} 8. Bd3 {[%clk 0:02:57]}  Bh5 {[%clk 0:02:58]} 9. Nf3 {[%clk 0:02:51]}  Bg6 {[%clk 0:02:58]} 10. O-O {[%clk 0:02:50]}  O-O {[%clk 0:02:54]} 11. Ne5 {[%clk 0:02:46]}  Bxd3 {[%clk 0:02:53]} 12. Qxd3 {[%clk 0:02:47]}  Nbd7 {[%clk 0:02:47]} 13. f4 {[%clk 0:02:45]}  Re8 {[%clk 0:02:47]} 14. Bh4 {[%clk 0:02:44]}  Rc8 {[%clk 0:02:33]} 15. Kh1 {[%clk 0:02:33]}  c5 {[%clk 0:02:24]} 16. Bxf6 {[%clk 0:02:24]}  Nxf6 {[%clk 0:02:23]} 17. dxc5 {[%clk 0:02:24]}  Bxc5 {[%clk 0:02:19]} 18. Rad1 {[%clk 0:02:24]}  Qc7 {[%clk 0:02:10]} 19. Nxd5 {[%clk 0:02:23]}  Nxd5 {[%clk 0:02:10]} 20. Qxd5 {[%clk 0:02:24]}  Bxe3 {[%clk 0:02:06]} 21. Qb3 {[%clk 0:02:24]}  Rcd8 {[%clk 0:01:46]} 22. Rxd8 {[%clk 0:02:21]}  Rxd8 {[%clk 0:01:39]} 23. Qxe3 {[%clk 0:02:21]}  Qd6 {[%clk 0:01:33]} 24. h3 {[%clk 0:02:17]}  Qb4 {[%clk 0:01:28]} 25. b3 {[%clk 0:02:05]}  Re8 {[%clk 0:01:26]} 26. Qd3 {[%clk 0:02:02]}  Qb6 {[%clk 0:01:22]} 27. Qd5 {[%clk 0:02:01]}  Rf8 {[%clk 0:01:20]} 28. Nd7 {[%clk 0:02:00]}  Qd8 {[%clk 0:01:19]} 29. Rd1 {[%clk 0:01:57]}  Re8 {[%clk 0:01:18]} 30. Qxb7 {[%clk 0:01:58]}  Qh4 {[%clk 0:01:15]} 31. Qf3 {[%clk 0:01:49]}  h6 {[%clk 0:01:10]} 32. Ne5 {[%clk 0:01:49]}  Rc8 {[%clk 0:01:04]} 33. Qb7 {[%clk 0:01:31]}  Rf8 {[%clk 0:00:57]} 34. Rf1 {[%clk 0:01:32]}  Qh5 {[%clk 0:00:49]} 35. Qxa7 {[%clk 0:01:29]}  Qe2 {[%clk 0:00:49]} 36. Qf2 {[%clk 0:01:30]}  Qe4 {[%clk 0:00:48]} 37. Re1 {[%clk 0:01:30]}  Qd5 {[%clk 0:00:46]} 38. Qf3 {[%clk 0:01:29]}  Qd2 {[%clk 0:00:46]} 39. Re2 {[%clk 0:01:30]}  Qd1+ {[%clk 0:00:42]} 40. Kh2 {[%clk 0:01:30]}  Rc8 {[%clk 0:00:40]} 41. Qd3 {[%clk 0:01:29]}  Qf1 {[%clk 0:00:37]} 42. Re4 {[%clk 0:01:25]}  Qc1 {[%clk 0:00:31]} 43. Rd4 {[%clk 0:01:25]}  g6 {[%clk 0:00:19]} 44. Qd2 {[%clk 0:01:22]}  Qc7 {[%clk 0:00:16]} 45. Rd7 {[%clk 0:01:22]}  Qc5 {[%clk 0:00:13]} 46. Nxf7 {[%clk 0:01:21]}  Qf5 {[%clk 0:00:12]} 47. Nxh6+ {[%clk 0:01:21]} 1-0


[Site "https://www.chess.com"]

[Event "Titled Tuesday Blitz May 2 Early 2023"]
[White "Lorenzo De La Riva, Lazaro"]
[Black "Buchenau, Frank"]
[WhiteFideId "2268809"]
[BlackFideId "4604350"]
[WhiteElo "2294"]
[BlackElo "2157"]
[Result "0-1"]
[Round "04"]
[TimeControl "180+2"]
[Date "2023.05.02"]
[WhiteClock "0:01:39"]
[BlackClock "0:01:09"]

1. c4 {[%clk 0:02:57]}  e5 {[%clk 0:02:59]} 2. Nf3 {[%clk 0:02:57]}  Nc6 {[%clk 0:02:58]} 3. Nc3 {[%clk 0:02:56]}  Nf6 {[%clk 0:02:58]} 4. e4 {[%clk 0:02:56]}  Bb4 {[%clk 0:02:57]} 5. Bd3 {[%clk 0:02:53]}  d6 {[%clk 0:02:49]} 6. h3 {[%clk 0:02:53]}  O-O {[%clk 0:02:48]} 7. O-O {[%clk 0:02:53]}  Nd7 {[%clk 0:02:35]} 8. a3 {[%clk 0:02:50]}  Nc5 {[%clk 0:02:31]} 9. Bc2 {[%clk 0:02:50]}  Bxc3 {[%clk 0:02:31]} 10. bxc3 {[%clk 0:02:46]}  f5 {[%clk 0:02:23]} 11. exf5 {[%clk 0:02:46]}  Bxf5 {[%clk 0:02:23]} 12. d4 {[%clk 0:02:46]}  Bxc2 {[%clk 0:02:15]} 13. Qxc2 {[%clk 0:02:47]}  Rxf3 {[%clk 0:02:04]} 14. gxf3 {[%clk 0:02:42]}  exd4 {[%clk 0:02:04]} 15. cxd4 {[%clk 0:02:35]}  Nxd4 {[%clk 0:02:03]} 16. Qd1 {[%clk 0:02:32]}  Qf6 {[%clk 0:01:56]} 17. Bb2 {[%clk 0:02:31]}  Nxf3+ {[%clk 0:01:52]} 18. Kg2 {[%clk 0:02:31]}  Nh4+ {[%clk 0:01:50]} 19. Kg3 {[%clk 0:02:31]}  Ne4+ {[%clk 0:01:39]} 20. Kh2 {[%clk 0:02:31]}  Qf4+ {[%clk 0:01:25]} 21. Kh1 {[%clk 0:02:27]}  Nf3 {[%clk 0:01:21]} 22. Kg2 {[%clk 0:02:23]}  Rf8 {[%clk 0:01:12]} 23. Rh1 {[%clk 0:01:40]}  Nh4+ {[%clk 0:01:10]} 24. Kg1 {[%clk 0:01:39]}  Qxf2# {[%clk 0:01:09]} 0-1


[Site "https://www.chess.com"]